fUST/lending_fUST_20250111
["ID","MTS","AMOUNT","RATE_DAILY","PERIOD"]
[348530091,1736605844078,-503.38216554,0.00022191,3]
[348530092,1736605844087,-500.0,0.00022191,3]
[348530093,1736605844097,-500.0,0.00022191,3]
[348530094,1736605844106,-500.0,0.00022191,3]
[348530095,1736605844116,-500.0,0.00022191,3]
[348530096,1736605844125,-408.59262849,0.00022191,3]
[348530097,1736605844135,-500.0,0.00022191,3]
[348530098,1736605844144,-231.28217631,0.00022191,3]
[348530099,1736605844155,-500.0,0.00022191,3]
[348530100,1736605844165,-500.0,0.00022191,3]
[348530101,1736605844175,-507.64905233,0.00022191,3]
[348530102,1736605844184,-500.0,0.00022191,3]
[348530103,1736605844194,-557.85,0.00022191,3]
[348530104,1736605844203,-446.34165727,0.00022191,3]
[348530105,1736605844213,-500.0,0.00022191,3]
[348530106,1736605844222,-509.56657055,0.00022191,3]
[348530107,1736605844231,-500.0,0.00022191,3]
[348530108,1736605844240,-504.76224731,0.00022191,3]
[348530109,1736605844250,-504.40092924,0.00022191,3]
[348530110,1736605844259,-500.0,0.00022191,3]
[348530111,1736605844268,-500.0,0.00022191,3]
[348530112,1736605844277,-508.65558148,0.00022191,3]
[348530113,1736605844286,-500.0,0.00022191,3]
[348530114,1736605844296,-500.0,0.00022191,3]
[348530115,1736605844305,-500.0,0.00022191,3]
[348530116,1736605844315,-500.0,0.00022191,3]
[348530117,1736605844324,-500.0,0.00022191,2]
[348530118,1736605844334,-500.0,0.00022191,3]
[348530119,1736605844344,-1072.83,0.00022191,3]
[348530120,1736605844353,-516.99968206,0.00022191,3]
[348530121,1736605844363,-500.0,0.00022191,3]
[348530122,1736605844372,-500.0,0.00022191,3]
[348530123,1736605844381,-500.0,0.00022191,3]
[348530124,1736605844391,-1198.67,0.00022191,3]
[348530125,1736605844402,-500.0,0.00022191,3]
[348530126,1736605844411,-509.34737822,0.00022191,3]
[348530127,1736605844421,-648.30477983,0.00022191,3]
[348530128,1736605844430,-500.0,0.00022191,3]
[348530129,1736605844439,-545.94,0.00022191,3]
[348530130,1736605844448,-683.46,0.00022191,3]
[348530131,1736605844458,-2636.81,0.00022191,3]
[348530132,1736605844468,-151.0,0.00022191,2]
[348530133,1736605844478,-151.0,0.00022191,2]
[348530134,1736605844487,-500.0,0.00022191,3]
[348530135,1736605844496,-151.0,0.00022191,2]
[348530136,1736605844506,-151.0,0.00022191,2]
[348530137,1736605844515,-511.55595276,0.00022191,3]
[348530138,1736605844524,-500.0,0.00022191,3]
[348530139,1736605844534,-1097.88,0.00022191,3]
[348530140,1736605844544,-1876.67,0.00022191,3]
[348530141,1736605844553,-500.0,0.00022191,3]
[348530142,1736605844563,-500.0,0.00022191,3]
[348530143,1736605844572,-500.0,0.00022191,3]
[348530144,1736605844582,-500.0,0.00022191,3]
[348530145,1736605844593,-235.88564571,0.00022191,3]
[348530146,1736605844603,-500.0,0.00022191,3]
[348530147,1736605844613,-500.0,0.00022191,3]
[348530148,1736605844623,-500.0,0.00022191,3]
[348530149,1736605844727,-500.0,0.00022191,3]
[348530150,1736605844737,-500.0,0.00022191,3]
[348530151,1736605844747,-500.0,0.00022191,3]
[348530152,1736605844756,-500.0,0.00022191,2]
[348530153,1736605844766,-500.0,0.00022191,3]
[348530154,1736605844776,-763.56,0.00022191,3]
[348530155,1736605844786,-500.0,0.00022191,3]
[348530156,1736605844796,-500.0,0.00022191,3]
[348530157,1736605844805,-567.18,0.00022191,3]
[348530158,1736605844815,-984.65,0.00022191,3]
[348530159,1736605844824,-816.94,0.00022191,3]
[348530160,1736605844833,-513.58630146,0.00022191,3]
[348530161,1736605844843,-503.55303386,0.00022191,3]
[348530162,1736605844853,-500.0,0.00022191,3]
[348530163,1736605844863,-500.0,0.00022191,3]
[348530164,1736605844872,-461.57698612,0.00022191,3]
[348530165,1736605844882,-500.0,0.00022191,3]
[348530166,1736605844891,-500.0,0.00022191,3]
[348530167,1736605844901,-500.0,0.00022191,3]
[348530168,1736605844910,-500.0,0.00022191,3]
[348530169,1736605844920,-500.0,0.00022191,3]
[348530170,1736605844930,-1126.29,0.00022191,3]
[348530171,1736605844940,-500.0,0.00022191,3]
[348530172,1736605844950,-500.0,0.00022191,3]
[348530173,1736605844960,-500.0,0.00022191,3]
[348530174,1736605844970,-1587.99,0.00022191,3]
[348530175,1736605844979,-3545.25,0.00022191,3]
[348530176,1736605844988,-689.7,0.00022191,3]
[348530177,1736605844998,-500.0,0.00022191,3]
[348530178,1736605845008,-502.82479724,0.00022191,3]
[348530179,1736605845017,-500.0,0.00022191,3]
[348530180,1736605845026,-1020.44767638,0.00022191,3]
[348530181,1736605845037,-1187.54,0.00022191,3]
[348530182,1736605845046,-500.0,0.00022191,3]
[348530183,1736605845056,-500.0,0.00022191,3]
[348530184,1736605845065,-505.82,0.00022191,3]
[348530185,1736605845074,-500.0,0.00022191,3]
[348530186,1736605845083,-151.0,0.00022191,7]
[348530187,1736605845092,-186.875124,0.00022191,7]
[348530188,1736605845102,-726.78,0.00022191,3]
[348530189,1736605845111,-1012.3,0.00022191,3]
[348530190,1736605845120,-1117.09,0.00022191,3]
[348530191,1736605845130,-532.45913438,0.00022191,3]
[348530192,1736605845139,-500.0,0.00022191,3]
[348530193,1736605845148,-159.73467445,0.00022191,3]
[348530194,1736605845157,-500.0,0.00022191,3]
[348530195,1736605845167,-500.0,0.00022191,3]
[348530196,1736605845176,-500.0,0.00022191,3]
[348530197,1736605845185,-500.0,0.00022191,3]
[348530198,1736605845194,-500.0,0.00022191,3]
[348530199,1736605845203,-500.0,0.00022191,3]
[348530200,1736605845212,-505.17361662,0.00022191,3]
[348530201,1736605845222,-500.0,0.00022191,3]
[348530202,1736605845231,-501.22383814,0.00022191,3]
[348530203,1736605845241,-500.0,0.00022191,3]
[348530204,1736605845250,-1079.94,0.00022191,3]
[348530205,1736605845259,-500.0,0.00022191,3]
[348530206,1736605845269,-530.40897516,0.00022191,3]
[348530207,1736605845278,-1028.92,0.00022191,3]
[348530208,1736605845287,-500.0,0.00022191,3]
[348530209,1736605845296,-500.0,0.00022191,3]
[348530210,1736605845305,-529.85,0.00022191,3]
[348530211,1736605845315,-500.0,0.00022191,3]
[348530212,1736605845324,-500.0,0.00022191,3]
[348530213,1736605845333,-1913.16,0.00022191,3]
[348530214,1736605845343,-860.68,0.000222,2]
[348530215,1736605845353,-4573.25,0.00022273,3]
[348530216,1736605845362,-500.0,0.00022273,3]
[348530217,1736605845371,-497.60026348,0.00022273,3]
[348530218,1736605845380,-1884.79,0.00022273,3]
[348530219,1736605845389,-321.84887538,0.00022273,3]
[348530220,1736605845398,-1157.47,0.00022273,3]
[348530221,1736605845407,-1059.08,0.00022273,3]
[348530222,1736605845416,-497.38498249,0.00022273,3]
[348530223,1736605845425,-500.0,0.00022273,3]
[348530224,1736605845434,-500.0,0.00022273,2]
[348530225,1736605845444,-500.0,0.00022273,3]
[348530226,1736605845453,-200.72938925,0.000223,2]
[348530227,1736605845462,-150.18,0.00022365,7]
[348530228,1736605845472,-500.0,0.00022365,2]
[348530229,1736605845482,-150.18,0.00022365,7]
[348530230,1736605845491,-150.18,0.00022365,7]
[348530231,1736605845500,-186309.11838702,0.0002245,15]
[348530232,1736605845510,-150.18,0.00022465,3]
[348530233,1736605845519,-859.92654661,0.00022465,3]
[348530234,1736605845528,-208.96757582,0.00022465,3]
[348530235,1736605845538,-500.0,0.00022465,3]
[348530236,1736605845547,-500.0,0.00022465,3]
[348530237,1736605845556,-500.0,0.00022465,3]
[348530238,1736605845565,-500.0,0.00022465,3]
[348530239,1736605845575,-500.0,0.00022465,3]
[348530240,1736605845584,-500.0,0.00022465,3]
[348530241,1736605845593,-500.0,0.00022465,3]
[348530242,1736605845602,-500.0,0.00022465,14]
[348530243,1736605845612,-500.0,0.00022465,3]
[348530244,1736605845621,-504.26065465,0.00022465,3]
[348530245,1736605845630,-497.74288432,0.00022465,3]
[348530246,1736605845639,-504.18648522,0.00022465,2]
[348530247,1736605845648,-273.55504952,0.00022465,3]
[348530248,1736605845658,-500.0,0.00022465,3]
[348530249,1736605845667,-500.0,0.00022465,3]
[348530250,1736605845676,-500.0,0.00022465,3]
[348530251,1736605845685,-500.0,0.00022465,3]
[348530252,1736605845695,-500.0,0.00022465,3]
[348530253,1736605845706,-500.0,0.00022465,3]
[348530254,1736605845716,-500.0,0.00022465,3]
[348530255,1736605845726,-500.0,0.00022465,3]
[348530256,1736605845736,-500.0,0.00022465,3]
[348530257,1736605845747,-500.0,0.00022465,3]
[348530258,1736605845756,-500.0,0.00022465,3]
[348530259,1736605845766,-500.0,0.00022465,3]
[348530260,1736605845775,-508.09654952,0.00022465,3]
[348530262,1736605845784,-500.0,0.00022465,3]
[348530264,1736605845793,-502.03063995,0.00022465,3]
[348530266,1736605845802,-500.0,0.00022465,3]
[348530267,1736605845812,-500.0,0.00022465,3]
[348530269,1736605845821,-500.0,0.00022465,3]
[348530271,1736605845830,-500.0,0.00022465,3]
[348530273,1736605845840,-500.0,0.00022465,3]
[348530275,1736605845851,-500.87090485,0.00022465,3]
[348530277,1736605845860,-500.0,0.00022465,3]
[348530278,1736605845869,-500.0,0.00022465,3]
[348530279,1736605845879,-185.39632152,0.00022465,3]
[348530280,1736605845888,-502.30277738,0.00022465,3]
[348530282,1736605845898,-500.0,0.00022465,3]
[348530284,1736605845907,-505.99301565,0.00022465,3]
[348530286,1736605845917,-500.0,0.00022465,3]
[348530289,1736605845926,-500.0,0.00022465,3]
[348530291,1736605845935,-500.0,0.00022465,3]
[348530292,1736605845944,-504.0969681,0.00022465,3]
[348530294,1736605845954,-500.0,0.00022465,3]
[348530296,1736605845966,-500.0,0.00022465,3]
[348530298,1736605845975,-500.0,0.00022465,3]
[348530301,1736605845986,-500.0,0.00022465,3]
[348530303,1736605845996,-500.0,0.00022465,3]
[348530305,1736605846006,-622.09601229,0.00022465,3]
[348530306,1736605846015,-500.0,0.00022465,3]
[348530308,1736605846025,-728.72,0.00022465,3]
[348530309,1736605846034,-564.06,0.00022465,3]
[348530310,1736605846043,-341.51579388,0.00022465,3]
[348530312,1736605846053,-547.62,0.00022465,3]
[348530314,1736605846062,-500.0,0.00022465,3]
[348530316,1736605846072,-500.0,0.00022465,3]
[348530317,1736605846081,-1150.66,0.00022465,3]
[348530318,1736605846090,-502.84931754,0.00022465,3]
[348530319,1736605846099,-500.0,0.00022465,3]
[348530320,1736605846108,-500.0,0.00022465,3]
[348530321,1736605846118,-500.0,0.00022465,3]
[348530322,1736605846128,-500.0,0.00022465,3]
[348530323,1736605846137,-500.0,0.00022465,3]
[348530324,1736605846146,-500.0,0.00022465,3]
[348530325,1736605846156,-500.0,0.00022465,3]
[348530326,1736605846165,-500.0,0.00022465,3]
[348530327,1736605846174,-500.0,0.00022465,3]
[348530328,1736605846183,-500.0,0.00022465,3]
[348530329,1736605846192,-500.0,0.00022465,3]
[348530330,1736605846201,-500.0,0.00022465,3]
[348530331,1736605846211,-500.0,0.00022465,3]
[348530332,1736605846220,-500.0,0.00022465,3]
[348530333,1736605846229,-510.6908202,0.00022465,3]
[348530334,1736605846239,-619.82840531,0.00022465,3]
[348530335,1736605846248,-500.0,0.00022465,3]
[348530336,1736605846257,-500.0,0.00022465,3]
[348530337,1736605846266,-500.0,0.00022465,3]
[348530338,1736605846276,-500.0,0.00022465,3]
[348530339,1736605846285,-507.57558029,0.00022465,3]
[348530340,1736605846294,-500.0,0.00022465,3]
[348530341,1736605846303,-500.0,0.00022465,3]
[348530342,1736605846313,-500.0,0.00022465,3]
[348530344,1736605846322,-500.0,0.00022465,3]
[348530345,1736605846331,-500.0,0.00022465,3]
[348530346,1736605846340,-1157.52,0.00022465,3]
[348530347,1736605846350,-500.0,0.00022465,3]
[348530348,1736605846359,-500.0,0.00022465,3]
[348530349,1736605846369,-246.12445621,0.00022465,3]
[348530350,1736605846379,-870.24,0.00022465,3]
[348530351,1736605846389,-513.46938706,0.00022465,3]
[348530352,1736605846398,-500.0,0.00022465,3]
[348530353,1736605846407,-500.0,0.00022465,3]
[348530354,1736605846418,-858.05,0.00022465,3]
[348530355,1736605846428,-500.0,0.00022465,3]
[348530356,1736605846439,-500.0,0.00022465,3]
[348530357,1736605846449,-500.0,0.00022465,3]
[348530358,1736605846459,-568.07182654,0.00022465,3]
[348530359,1736605846470,-361.67774438,0.00022465,2]
[348530360,1736605846480,-513.02970418,0.00022465,3]
[348530361,1736605846489,-1925.45,0.00022465,3]
[348530362,1736605846498,-747.24,0.00022465,3]
[348530363,1736605846507,-500.0,0.00022465,3]
[348530364,1736605846516,-428.41768776,0.00022465,30]
[348530365,1736605846526,-500.0,0.00022465,3]
[348530366,1736605846535,-500.0,0.00022465,3]
[348530367,1736605846545,-500.0,0.00022465,3]
[348530368,1736605846554,-500.0,0.00022465,3]
[348530369,1736605846563,-500.0,0.00022465,3]
[348530370,1736605846573,-500.0,0.00022465,3]
[348530371,1736605846582,-500.0,0.00022465,3]
[348530372,1736605846591,-500.0,0.00022465,3]
[348530373,1736605846601,-500.0,0.00022465,3]
[348530374,1736605846610,-500.0,0.00022465,3]
[348530375,1736605846619,-500.0,0.00022465,3]
[348530376,1736605846629,-540.06,0.00022465,3]
[348530377,1736605846638,-785.25,0.00022465,3]
[348530378,1736605846647,-500.0,0.00022465,3]
[348530379,1736605846656,-500.0,0.00022465,3]
[348530380,1736605846667,-500.0,0.00022465,3]
[348530381,1736605846676,-500.0,0.00022465,3]
[348530382,1736605846687,-525.08,0.00022465,3]
[348530383,1736605846697,-500.0,0.00022465,3]
[348530384,1736605846706,-500.0,0.00022465,3]
[348530385,1736605846717,-500.0,0.00022465,3]
[348530386,1736605846726,-500.0,0.00022465,3]
[348530387,1736605846736,-500.0,0.00022465,3]
[348530388,1736605846745,-500.0,0.00022465,3]
[348530389,1736605846755,-500.0,0.00022465,3]
[348530390,1736605846764,-500.0,0.00022465,3]
[348530391,1736605846773,-158.46848235,0.00022465,3]
[348530392,1736605846782,-500.0,0.00022465,3]
[348530393,1736605846791,-500.0,0.00022465,3]
[348530394,1736605846801,-500.0,0.00022465,3]
[348530395,1736605846812,-476.84920763,0.00022465,3]
[348530396,1736605846822,-511.21814606,0.00022465,3]
[348530397,1736605846831,-500.0,0.00022465,3]
[348530398,1736605846841,-500.0,0.00022465,3]
[348530399,1736605846851,-500.0,0.00022465,3]
[348530400,1736605846860,-500.0,0.00022465,3]
[348530401,1736605846870,-500.0,0.00022465,3]
[348530402,1736605846879,-501.68967736,0.00022465,3]
[348530403,1736605846888,-500.0,0.00022465,3]
[348530404,1736605846897,-500.0,0.00022465,3]
[348530405,1736605846907,-500.0,0.00022465,3]
[348530406,1736605846916,-360.4964238,0.00022465,3]
[348530407,1736605846925,-500.0,0.00022465,3]
[348530408,1736605846934,-500.0,0.00022465,3]
[348530409,1736605847035,-500.0,0.00022465,3]
[348530410,1736605847045,-500.0,0.00022465,3]
[348530411,1736605847054,-500.0,0.00022465,3]
[348530412,1736605847063,-255.54063985,0.00022465,3]
[348530413,1736605847073,-500.0,0.00022465,3]
[348530414,1736605847082,-500.0,0.00022465,3]
[348530415,1736605847091,-500.0,0.00022465,3]
[348530416,1736605847101,-557.85,0.00022465,3]
[348530417,1736605847110,-500.0,0.00022465,3]
[348530418,1736605847119,-251.49910826,0.00022465,3]
[348530419,1736605847128,-500.0,0.00022465,3]
[348530420,1736605847137,-500.0,0.00022465,3]
[348530421,1736605847147,-500.0,0.00022465,3]
[348530422,1736605847156,-500.0,0.00022465,3]
[348530423,1736605847165,-500.0,0.00022465,3]
[348530424,1736605847174,-573.56959475,0.00022465,2]
[348530425,1736605847183,-500.0,0.00022465,3]
[348530426,1736605847193,-1072.83,0.00022465,3]
[348530427,1736605847202,-500.0,0.00022465,3]
[348530428,1736605847211,-500.0,0.00022465,3]
[348530429,1736605847221,-500.0,0.00022465,3]
[348530430,1736605847230,-1198.67,0.00022465,3]
[348530431,1736605847239,-500.0,0.00022465,3]
[348530432,1736605847248,-545.94,0.00022465,3]
[348530433,1736605847257,-2636.81,0.00022465,3]
[348530434,1736605847266,-683.46,0.00022465,3]
[348530435,1736605847275,-500.0,0.00022465,3]
[348530436,1736605847284,-500.0,0.00022465,3]
[348530437,1736605847293,-1097.88,0.00022465,3]
[348530438,1736605847303,-1876.67,0.00022465,3]
[348530439,1736605847312,-500.0,0.00022465,3]
[348530440,1736605847321,-500.0,0.00022465,3]
[348530441,1736605847330,-500.0,0.00022465,3]
[348530442,1736605847339,-500.0,0.00022465,3]
[348530443,1736605847349,-500.0,0.00022465,3]
[348530444,1736605847358,-505.38414201,0.00022465,3]
[348530445,1736605847367,-500.0,0.00022465,3]
[348530446,1736605847376,-500.0,0.00022465,3]
[348530447,1736605847385,-500.0,0.00022465,3]
[348530448,1736605847394,-577.8660837,0.00022465,3]
[348530449,1736605847403,-500.0,0.00022465,2]
[348530450,1736605847412,-500.0,0.00022465,3]
[348530451,1736605847421,-763.56,0.00022465,3]
[348530452,1736605847431,-505.94430735,0.00022465,3]
[348530453,1736605847440,-500.0,0.00022465,3]
[348530454,1736605847449,-567.18,0.00022465,3]
[348530455,1736605847458,-984.65,0.00022465,3]
[348530456,1736605847467,-816.94,0.00022465,3]
[348530457,1736605847476,-500.0,0.00022465,3]
[348530458,1736605847486,-500.0,0.00022465,3]
[348530459,1736605847495,-491.9250274,0.00022465,3]
[348530460,1736605847504,-500.0,0.00022465,3]
[348530461,1736605847514,-500.0,0.00022465,3]
[348530462,1736605847523,-500.0,0.00022465,3]
[348530463,1736605847533,-500.0,0.00022465,3]
[348530464,1736605847543,-500.0,0.00022465,3]
[348530465,1736605847551,-1126.29,0.00022465,3]
[348530466,1736605847561,-500.0,0.00022465,3]
[348530467,1736605847571,-504.60195996,0.00022465,3]
[348530468,1736605847581,-1587.99,0.00022465,3]
[348530469,1736605847590,-689.7,0.00022465,3]
[348530470,1736605847600,-3545.25,0.00022465,3]
[348530471,1736605847609,-500.0,0.00022465,3]
[348530472,1736605847619,-1187.54,0.00022465,3]
[348530473,1736605847630,-500.0,0.00022465,3]
[348530474,1736605847641,-500.0,0.00022465,3]
[348530475,1736605847652,-505.82,0.00022465,3]
[348530476,1736605847662,-500.0,0.00022465,3]
[348530477,1736605847671,-726.78,0.00022465,3]
[348530478,1736605847681,-1012.3,0.00022465,3]
[348530479,1736605847691,-1117.09,0.00022465,3]
[348530480,1736605847700,-500.0,0.00022465,3]
[348530481,1736605847711,-500.0,0.00022465,3]
[348530482,1736605847720,-500.0,0.00022465,3]
[348530483,1736605847730,-500.0,0.00022465,3]
[348530484,1736605847739,-500.0,0.00022465,3]
[348530485,1736605847749,-500.0,0.00022465,3]
[348530486,1736605847758,-500.0,0.00022465,3]
[348530487,1736605847767,-500.0,0.00022465,3]
[348530488,1736605847776,-500.0,0.00022465,3]
[348530489,1736605847785,-1079.94,0.00022465,3]
[348530490,1736605847795,-500.0,0.00022465,3]
[348530491,1736605847804,-1028.92,0.00022465,3]
[348530492,1736605847813,-500.0,0.00022465,3]
[348530493,1736605847824,-500.0,0.00022465,3]
[348530494,1736605847833,-529.85,0.00022465,3]
[348530495,1736605847842,-500.0,0.00022465,3]
[348530496,1736605847853,-1913.16,0.00022465,3]
[348530497,1736605847862,-500.0,0.00022465,3]
[348530498,1736605847871,-500.41253112,0.00022473,2]
[348530499,1736605847881,-377.5751653,0.00022473,2]
[348530500,1736605847891,-500.0,0.00022473,2]
[348530501,1736605847900,-500.0,0.00022473,2]
[348530502,1736605847909,-500.0,0.00022473,2]
[348530503,1736605847918,-500.38849099,0.00022473,2]
[348530504,1736605847927,-166.2725266,0.00022473,2]
[348530505,1736605847937,-151.20230583,0.00022473,2]
[348530506,1736605847946,-343.78804773,0.00022473,2]
[348530507,1736605847957,-500.0,0.00022473,2]
[348530508,1736605847967,-329.11939145,0.00022473,2]
[348530509,1736605847975,-500.0,0.00022473,2]
[348530510,1736605847985,-500.0,0.00022473,2]
[348530511,1736605847995,-500.24642074,0.00022473,2]
[348530512,1736605848005,-360.788483,0.00022473,2]
[348530513,1736605848014,-500.0,0.00022473,2]
[348530514,1736605848024,-500.0,0.00022473,2]
[348530515,1736605848034,-207.42477031,0.00022473,2]
[348530516,1736605848044,-500.0,0.00022473,2]
[348530517,1736605848055,-151.0,0.00022473,6]
[348530518,1736605848064,-30000.0,0.000225,7]
[348530519,1736605848073,-2000.0,0.000225,2]
[348530520,1736605848083,-73854.12127444,0.000225,2]
[348530521,1736605848092,-1000.0,0.00022521,2]
[348530522,1736605848102,-4573.25,0.00022547,3]
[348530523,1736605848111,-500.0,0.00022547,3]
[348530524,1736605848121,-1884.79,0.00022547,3]
[348530525,1736605848132,-1157.47,0.00022547,3]
[348530526,1736605848141,-1059.08,0.00022547,3]
[348530527,1736605848151,-500.0,0.00022547,3]
[348530528,1736605848160,-500.0,0.00022547,2]
[348530529,1736605848170,-153.0,0.00022548,2]
[348530530,1736605848179,-153.0,0.00022548,2]
[348530531,1736605848188,-153.0,0.00022548,2]
[348530532,1736605848197,-105343.76452661,0.0002258,60]
[348530533,1736605848206,-200.96474358,0.00022639,7]
[348530534,1736605848215,-606.09166906,0.00022639,2]
[348530535,1736605848224,-150.18,0.00022639,7]
[348530536,1736605848233,-200.53599523,0.00022639,7]
[348530537,1736605848242,-200.72938925,0.000227,2]
[348530538,1736605848252,-1000.0,0.00022721,2]
[348530539,1736605848261,-150.18,0.00022739,3]
[348530540,1736605848270,-398.46889614,0.00022739,3]
[348530541,1736605848279,-500.0,0.00022739,3]
[348530542,1736605848288,-500.0,0.00022739,3]
[348530543,1736605848297,-511.1011586,0.00022739,3]
[348530544,1736605848306,-500.0,0.00022739,3]
[348530545,1736605848315,-576.55182439,0.00022739,3]
[348530546,1736605848325,-500.0,0.00022739,3]
[348530547,1736605848334,-500.0,0.00022739,14]
[348530548,1736605848343,-504.03216855,0.00022739,3]
[348530549,1736605848353,-500.0,0.00022739,3]
[348530550,1736605848363,-500.0,0.00022739,3]
[348530551,1736605848373,-519.44309518,0.00022739,3]
[348530552,1736605848382,-503.84578056,0.00022739,3]
[348530553,1736605848392,-500.0,0.00022739,3]
[348530554,1736605848401,-500.0,0.00022739,3]
[348530555,1736605848410,-500.0,0.00022739,3]
[348530556,1736605848419,-500.0,0.00022739,3]
[348530557,1736605848428,-411.97524175,0.00022739,3]
[348530558,1736605848437,-500.0,0.00022739,3]
[348530559,1736605848446,-500.0,0.00022739,3]
[348530560,1736605848456,-500.0,0.00022739,3]
[348530561,1736605848465,-502.25344988,0.00022739,3]
[348530562,1736605848474,-501.84002435,0.00022739,3]
[348530563,1736605848483,-502.0761363,0.00022739,3]
[348530564,1736605848493,-615.09331834,0.00022739,3]
[348530565,1736605848502,-500.0,0.00022739,3]
[348530566,1736605848511,-500.0,0.00022739,3]
[348530567,1736605848521,-500.0,0.00022739,3]
[348530568,1736605848530,-500.0,0.00022739,3]
[348530569,1736605848539,-728.72,0.00022739,3]
[348530570,1736605848548,-564.06,0.00022739,3]
[348530571,1736605848557,-500.0,0.00022739,3]
[348530572,1736605848566,-547.62,0.00022739,3]
[348530573,1736605848575,-500.0,0.00022739,3]
[348530574,1736605848584,-1150.66,0.00022739,3]
[348530575,1736605848593,-500.0,0.00022739,3]
[348530576,1736605848603,-500.0,0.00022739,3]
[348530577,1736605848611,-500.0,0.00022739,3]
[348530578,1736605848621,-500.0,0.00022739,3]
[348530579,1736605848630,-500.0,0.00022739,3]
[348530580,1736605848639,-500.0,0.00022739,3]
[348530581,1736605848648,-500.0,0.00022739,3]
[348530582,1736605848657,-500.0,0.00022739,3]
[348530583,1736605848666,-500.0,0.00022739,3]
[348530584,1736605848675,-500.0,0.00022739,3]
[348530585,1736605848685,-500.0,0.00022739,3]
[348530586,1736605848694,-500.0,0.00022739,3]
[348530587,1736605848703,-500.0,0.00022739,3]
[348530588,1736605848713,-500.0,0.00022739,3]
[348530589,1736605848722,-500.0,0.00022739,3]
[348530590,1736605848731,-500.0,0.00022739,3]
[348530591,1736605848741,-500.0,0.00022739,3]
[348530592,1736605848750,-175.1308203,0.00022739,3]
[348530593,1736605848759,-500.0,0.00022739,3]
[348530594,1736605848770,-500.0,0.00022739,3]
[348530595,1736605848779,-500.0,0.00022739,3]
[348530596,1736605848789,-500.0,0.00022739,3]
[348530597,1736605848798,-1157.52,0.00022739,3]
[348530598,1736605848807,-500.0,0.00022739,3]
[348530599,1736605848817,-870.24,0.00022739,3]
[348530600,1736605848827,-500.0,0.00022739,3]
[348530601,1736605848836,-500.0,0.00022739,3]
[348530602,1736605848847,-858.05,0.00022739,3]
[348530603,1736605848856,-500.0,0.00022739,3]
[348530604,1736605848866,-500.0,0.00022739,3]
[348530605,1736605848880,-1925.45,0.00022739,3]
[348530606,1736605848890,-747.24,0.00022739,3]
[348530607,1736605848899,-500.0,0.00022739,3]
[348530608,1736605848909,-500.0,0.00022739,3]
[348530609,1736605848918,-500.0,0.00022739,3]
[348530610,1736605848928,-500.0,0.00022739,3]
[348530611,1736605848938,-504.04193278,0.00022739,3]
[348530612,1736605848947,-579.72472725,0.00022739,3]
[348530613,1736605848956,-500.0,0.00022739,3]
[348530614,1736605848968,-500.0,0.00022739,3]
[348530615,1736605848978,-500.0,0.00022739,3]
[348530616,1736605848987,-500.0,0.00022739,3]